[Event "Late-Titled-Tuesday-Blitz-April-30-2024"]
[Site "Chess.com"]
[Date "2024.04.30"]
[Round "4"]
[White "Dhaydon19"]
[Black "Arystanner"]
[Result "1-0"]
[WhiteElo "2621"]
[BlackElo "2839"]
[TimeControl "180+1"]
[EndTime "14:37:16 PDT"]
[Termination "Dhaydon19 won by resignation"]

1. e4 {[%clk 0:02:53.4]} 1... e6 {[%clk 0:02:56.5]} 2. Nc3 {[%clk 0:02:52.1]}
2... d5 {[%clk 0:02:57.4]} 3. d4 {[%clk 0:02:52.2]} 3... Nf6 {[%clk 0:02:57.2]}
4. exd5 {[%clk 0:02:52.2]} 4... exd5 {[%clk 0:02:57.2]} 5. Bd3 {[%clk
0:02:52.6]} 5... Bd6 {[%clk 0:02:56.5]} 6. h3 {[%clk 0:02:51.5]} 6... O-O {[%clk
0:02:56.2]} 7. Nge2 {[%clk 0:02:50.4]} 7... h6 {[%clk 0:02:49.2]} 8. O-O {[%clk
0:02:48.9]} 8... Re8 {[%clk 0:02:49.8]} 9. Bf4 {[%clk 0:02:47.6]} 9... Nc6
{[%clk 0:02:49.1]} 10. Bxd6 {[%clk 0:02:45]} 10... Qxd6 {[%clk 0:02:49.1]} 11.
Qd2 {[%clk 0:02:44.9]} 11... Ne7 {[%clk 0:02:42.3]} 12. Ng3 {[%clk 0:02:39.7]}
12... Bd7 {[%clk 0:02:40.1]} 13. Rfe1 {[%clk 0:02:37.8]} 13... c6 {[%clk
0:02:30.3]} 14. Re2 {[%clk 0:02:31.2]} 14... Ng6 {[%clk 0:02:30.6]} 15. Bxg6
{[%clk 0:02:28.4]} 15... fxg6 {[%clk 0:02:30.8]} 16. Rae1 {[%clk 0:02:27.3]}
16... g5 {[%clk 0:02:30.7]} 17. Re5 {[%clk 0:02:24.6]} 17... Qf8 {[%clk
0:02:20.6]} 18. a3 {[%clk 0:02:21.9]} 18... Qf7 {[%clk 0:02:19.4]} 19. f4 {[%clk
0:02:17]} 19... Nh7 {[%clk 0:02:08.6]} 20. fxg5 {[%clk 0:02:14.8]} 20... Nxg5
{[%clk 0:02:08.9]} 21. h4 {[%clk 0:02:12.7]} 21... Rxe5 {[%clk 0:02:07]} 22.
dxe5 {[%clk 0:01:57.6]} 22... Ne6 {[%clk 0:02:06.8]} 23. Rf1 {[%clk 0:01:54.4]}
23... Qe7 {[%clk 0:02:06.8]} 24. Nf5 {[%clk 0:01:53.6]} 24... Qc5+ {[%clk
0:02:07.2]} 25. Kh2 {[%clk 0:01:52.1]} 25... d4 {[%clk 0:02:07.6]} 26. Ne4
{[%clk 0:01:44.4]} 26... Qxe5+ {[%clk 0:02:03.7]} 27. Neg3 {[%clk 0:01:44.4]}
27... Rf8 {[%clk 0:01:58.7]} 28. Ne7+ {[%clk 0:01:43.2]} 28... Kh7 {[%clk
0:01:56.3]} 29. Qd3+ {[%clk 0:01:42.5]} 1-0

[Event "Late-Titled-Tuesday-Blitz-April-30-2024"]
[Site "Chess.com"]
[Date "2024.04.30"]
[Round "4"]
[White "ELPRIMO0O0"]
[Black "Kostukov_Alex"]
[Result "1-0"]
[WhiteElo "2555"]
[BlackElo "2380"]
[TimeControl "180+1"]
[EndTime "14:37:31 PDT"]
[Termination "ELPRIMO0O0 won by resignation"]

1. e4 {[%clk 0:02:59.6]} 1... c5 {[%clk 0:02:58.8]} 2. d3 {[%clk 0:02:58.2]}
2... g6 {[%clk 0:02:59.1]} 3. g3 {[%clk 0:02:58.5]} 3... Bg7 {[%clk 0:02:59.3]}
4. Bg2 {[%clk 0:02:59.4]} 4... Nc6 {[%clk 0:02:58.4]} 5. f4 {[%clk 0:02:59.9]}
5... d6 {[%clk 0:02:57.5]} 6. Nf3 {[%clk 0:03:00.5]} 6... e5 {[%clk 0:02:57.7]}
7. O-O {[%clk 0:03:00.7]} 7... Nge7 {[%clk 0:02:57.8]} 8. f5 {[%clk 0:03:01.3]}
8... gxf5 {[%clk 0:02:50.8]} 9. Nh4 {[%clk 0:03:00.9]} 9... fxe4 {[%clk
0:02:11.6]} 10. dxe4 {[%clk 0:03:01.8]} 10... Ng6 {[%clk 0:01:35.2]} 11. Nf5
{[%clk 0:03:01]} 11... Bf8 {[%clk 0:01:34.5]} 12. Nc3 {[%clk 0:02:54.2]} 12...
Be6 {[%clk 0:01:31.7]} 13. Nd5 {[%clk 0:02:45]} 13... Kd7 {[%clk 0:00:59.5]} 14.
c3 {[%clk 0:02:33.1]} 14... Kc8 {[%clk 0:00:54.2]} 15. Be3 {[%clk 0:02:32.6]}
15... Nce7 {[%clk 0:00:50.3]} 16. Nf6 {[%clk 0:02:15.2]} 16... Nxf5 {[%clk
0:00:41.1]} 17. exf5 {[%clk 0:02:14.6]} 17... Qxf6 {[%clk 0:00:39.6]} 18. fxe6
{[%clk 0:02:14.5]} 18... Qxe6 {[%clk 0:00:39.5]} 19. Qh5 {[%clk 0:02:15.4]}
19... Be7 {[%clk 0:00:33.6]} 20. Bh3 {[%clk 0:02:14.4]} 1-0

[Event "Late-Titled-Tuesday-Blitz-April-30-2024"]
[Site "Chess.com"]
[Date "2024.04.30"]
[Round "4"]
[White "2L8IWUN"]
[Black "margarita_2703"]
[Result "0-1"]
[WhiteElo "2047"]
[BlackElo "2318"]
[TimeControl "180+1"]
[EndTime "14:38:00 PDT"]
[Termination "margarita_2703 won by resignation"]

1. d4 {[%clk 0:03:00.9]} 1... d5 {[%clk 0:02:59.9]} 2. Nf3 {[%clk 0:03:00.4]}
2... Nf6 {[%clk 0:02:59.8]} 3. Bf4 {[%clk 0:03:00.2]} 3... Bf5 {[%clk
0:03:00.1]} 4. e3 {[%clk 0:03:00.5]} 4... e6 {[%clk 0:03:00]} 5. Bd3 {[%clk
0:03:01]} 5... Bd6 {[%clk 0:02:58.7]} 6. Bxd6 {[%clk 0:02:56.4]} 6... Qxd6
{[%clk 0:02:54.8]} 7. O-O {[%clk 0:02:54.6]} 7... Bxd3 {[%clk 0:02:53.7]} 8.
Qxd3 {[%clk 0:02:54.3]} 8... O-O {[%clk 0:02:54.6]} 9. c4 {[%clk 0:02:54.1]}
9... c6 {[%clk 0:02:54]} 10. c5 {[%clk 0:02:51.3]} 10... Qc7 {[%clk 0:02:52.5]}
11. Ne5 {[%clk 0:02:42.8]} 11... Nbd7 {[%clk 0:02:53.4]} 12. f4 {[%clk
0:02:41.7]} 12... Ne4 {[%clk 0:02:53.7]} 13. Nc3 {[%clk 0:02:41.2]} 13... Nxc3
{[%clk 0:02:52.5]} 14. Qxc3 {[%clk 0:02:40.7]} 14... f6 {[%clk 0:02:53.4]} 15.
Nxd7 {[%clk 0:02:28.4]} 15... Qxd7 {[%clk 0:02:54.3]} 16. b4 {[%clk 0:02:24]}
16... Rf7 {[%clk 0:02:53.6]} 17. a4 {[%clk 0:02:23.3]} 17... Re8 {[%clk
0:02:54.2]} 18. Rab1 {[%clk 0:02:23.2]} 18... a6 {[%clk 0:02:53.6]} 19. b5
{[%clk 0:02:21.3]} 19... axb5 {[%clk 0:02:54.5]} 20. axb5 {[%clk 0:02:22.2]}
20... Rfe7 {[%clk 0:02:54.8]} 21. bxc6 {[%clk 0:02:21.2]} 21... bxc6 {[%clk
0:02:55.7]} 22. Rb6 {[%clk 0:02:15.8]} 22... e5 {[%clk 0:02:55]} 23. fxe5 {[%clk
0:01:37.8]} 23... fxe5 {[%clk 0:02:55.9]} 24. Qb2 {[%clk 0:01:34.9]} 24... exd4
{[%clk 0:02:54.4]} 25. exd4 {[%clk 0:01:35.8]} 25... Re2 {[%clk 0:02:54]} 26.
Qc3 {[%clk 0:01:26.5]} 26... Qg4 {[%clk 0:02:53]} 27. Qf3 {[%clk 0:01:25.7]}
27... Qxd4+ {[%clk 0:02:52.8]} 28. Kh1 {[%clk 0:01:24.6]} 28... Re1 {[%clk
0:02:46.4]} 29. Rb7 {[%clk 0:00:23.9]} 29... Rxf1+ {[%clk 0:02:41.8]} 30. Qxf1
{[%clk 0:00:24.8]} 30... Qf6 {[%clk 0:02:41.6]} 31. Qxf6 {[%clk 0:00:03.3]}
31... Re1+ {[%clk 0:02:40.2]} 0-1

[Event "Late-Titled-Tuesday-Blitz-April-30-2024"]
[Site "Chess.com"]
[Date "2024.04.30"]
[Round "4"]
[White "Umumba_FM"]
[Black "ChadBiryani"]
[Result "1-0"]
[WhiteElo "2702"]
[BlackElo "2489"]
[TimeControl "180+1"]
[EndTime "14:38:02 PDT"]
[Termination "Umumba_FM won by checkmate"]

1. Nc3 {[%clk 0:03:00.9]} 1... f5 {[%clk 0:02:58.5]} 2. e4 {[%clk 0:03:00.7]}
2... d6 {[%clk 0:02:57.8]} 3. exf5 {[%clk 0:02:54.1]} 3... Bxf5 {[%clk
0:02:57.2]} 4. g4 {[%clk 0:02:54.7]} 4... Bd7 {[%clk 0:02:52.9]} 5. g5 {[%clk
0:02:53.6]} 5... Bc6 {[%clk 0:02:47.5]} 6. Nf3 {[%clk 0:02:49.6]} 6... e5 {[%clk
0:02:47.1]} 7. h4 {[%clk 0:02:39.7]} 7... Ne7 {[%clk 0:02:45.2]} 8. Bg2 {[%clk
0:02:39.5]} 8... Ng6 {[%clk 0:02:35.9]} 9. d4 {[%clk 0:02:31.9]} 9... Be7 {[%clk
0:02:32.3]} 10. d5 {[%clk 0:02:26.8]} 10... Bd7 {[%clk 0:02:28.5]} 11. h5 {[%clk
0:02:22.2]} 11... Nf4 {[%clk 0:02:25.6]} 12. Bxf4 {[%clk 0:02:22.1]} 12... exf4
{[%clk 0:02:25.7]} 13. Ne4 {[%clk 0:02:20.3]} 13... Bf5 {[%clk 0:02:18.3]} 14.
Qd4 {[%clk 0:02:20.2]} 14... O-O {[%clk 0:01:50.5]} 15. h6 {[%clk 0:02:16.6]}
15... gxh6 {[%clk 0:01:50.5]} 16. gxh6 {[%clk 0:02:15.2]} 16... Bf6 {[%clk
0:01:45.9]} 17. Nxf6+ {[%clk 0:02:10.9]} 17... Qxf6 {[%clk 0:01:45.9]} 18. O-O-O
{[%clk 0:02:06.7]} 18... Nd7 {[%clk 0:01:29.2]} 19. Qxf4 {[%clk 0:01:59.2]}
19... Kh8 {[%clk 0:01:25.7]} 20. Qd4 {[%clk 0:01:57.4]} 20... Ne5 {[%clk
0:01:25.3]} 21. Nxe5 {[%clk 0:01:57.2]} 21... dxe5 {[%clk 0:01:26.2]} 22. Qc3
{[%clk 0:01:57.3]} 22... Qg5+ {[%clk 0:01:25.6]} 23. Kb1 {[%clk 0:01:54.3]}
23... Rae8 {[%clk 0:01:25]} 24. Rdg1 {[%clk 0:01:51.2]} 24... Qf4 {[%clk
0:01:20.8]} 25. Qxc7 {[%clk 0:01:41.9]} 25... Rg8 {[%clk 0:01:19.2]} 26. Bf1
{[%clk 0:01:29.4]} 26... Qxf2 {[%clk 0:01:05.4]} 27. Rxg8+ {[%clk 0:01:20.3]}
27... Rxg8 {[%clk 0:01:05.3]} 28. Qxe5+ {[%clk 0:01:20.7]} 28... Rg7 {[%clk
0:01:05.7]} 29. Qxg7# {[%clk 0:01:20.7]} 1-0

[Event "Late-Titled-Tuesday-Blitz-April-30-2024"]
[Site "Chess.com"]
[Date "2024.04.30"]
[Round "4"]
[White "ACollins05"]
[Black "h4parah5"]
[Result "0-1"]
[WhiteElo "2580"]
[BlackElo "3031"]
[TimeControl "180+1"]
[EndTime "14:38:07 PDT"]
[Termination "h4parah5 won by resignation"]

1. d4 {[%clk 0:03:00.9]} 1... Nf6 {[%clk 0:02:59.9]} 2. c4 {[%clk 0:03:00.4]}
2... e6 {[%clk 0:02:59.6]} 3. Nf3 {[%clk 0:02:59.4]} 3... c5 {[%clk 0:03:00.1]}
4. d5 {[%clk 0:02:57.8]} 4... exd5 {[%clk 0:03:01]} 5. cxd5 {[%clk 0:02:58.5]}
5... d6 {[%clk 0:03:01.5]} 6. Nc3 {[%clk 0:02:58]} 6... g6 {[%clk 0:03:01.7]} 7.
e4 {[%clk 0:02:58.2]} 7... a6 {[%clk 0:03:00.5]} 8. a4 {[%clk 0:02:54.8]} 8...
Bg4 {[%clk 0:03:00]} 9. Be2 {[%clk 0:02:51.8]} 9... Bg7 {[%clk 0:02:56.6]} 10.
Bf4 {[%clk 0:02:51.4]} 10... O-O {[%clk 0:02:54.6]} 11. h3 {[%clk 0:02:51.3]}
11... Bxf3 {[%clk 0:02:54.7]} 12. Bxf3 {[%clk 0:02:52.2]} 12... Qe7 {[%clk
0:02:50.9]} 13. O-O {[%clk 0:02:51.9]} 13... Nbd7 {[%clk 0:02:51.1]} 14. Re1
{[%clk 0:02:50.7]} 14... Ne8 {[%clk 0:02:47.5]} 15. Qb3 {[%clk 0:02:45.6]} 15...
Rb8 {[%clk 0:02:46.8]} 16. a5 {[%clk 0:02:40.3]} 16... Nc7 {[%clk 0:02:45.8]}
17. Bg4 {[%clk 0:02:37.1]} 17... Ne5 {[%clk 0:02:42]} 18. Be2 {[%clk 0:02:35.6]}
18... Nd7 {[%clk 0:02:31.9]} 19. Bg4 {[%clk 0:02:33.3]} 19... b5 {[%clk
0:02:28.2]} 20. Bxd7 {[%clk 0:02:23.3]} 20... Qxd7 {[%clk 0:02:29.1]} 21. Rad1
{[%clk 0:02:20.4]} 21... Rfe8 {[%clk 0:02:27.4]} 22. h4 {[%clk 0:02:11.2]} 22...
h5 {[%clk 0:02:26.5]} 23. Nb1 {[%clk 0:02:07.4]} 23... Rbd8 {[%clk 0:01:56.9]}
24. Bg5 {[%clk 0:01:55.6]} 24... f6 {[%clk 0:01:55.7]} 25. Bf4 {[%clk
0:01:55.5]} 25... f5 {[%clk 0:01:56.1]} 26. exf5 {[%clk 0:01:51.9]} 26... Qxf5
{[%clk 0:01:56]} 27. Qg3 {[%clk 0:01:48.8]} 27... Rxe1+ {[%clk 0:01:52.9]} 28.
Rxe1 {[%clk 0:01:49.7]} 28... Nxd5 {[%clk 0:01:50.7]} 29. Bxd6 {[%clk
0:01:45.8]} 29... Nb4 {[%clk 0:01:47.6]} 30. Nc3 {[%clk 0:01:32]} 30... Nd3
{[%clk 0:01:42.9]} 31. Re7 {[%clk 0:01:30.4]} 31... Rxd6 {[%clk 0:01:36.4]} 32.
Qxd6 {[%clk 0:01:15.7]} 32... Qxf2+ {[%clk 0:01:35.5]} 33. Kh2 {[%clk
0:01:15.1]} 33... Qxh4+ {[%clk 0:01:35.4]} 34. Kg1 {[%clk 0:01:14.1]} 34... Bd4+
{[%clk 0:01:35.7]} 35. Qxd4 {[%clk 0:01:05.2]} 35... Qxd4+ {[%clk 0:01:34.8]}
0-1

[Event "Late-Titled-Tuesday-Blitz-April-30-2024"]
[Site "Chess.com"]
[Date "2024.04.30"]
[Round "4"]
[White "Mackster23"]
[Black "Cayse"]
[Result "1-0"]
[WhiteElo "2609"]
[BlackElo "2790"]
[TimeControl "180+1"]
[EndTime "14:38:15 PDT"]
[Termination "Mackster23 won by resignation"]

1. e4 {[%clk 0:03:00.9]} 1... c6 {[%clk 0:02:59.2]} 2. d4 {[%clk 0:03:00.8]}
2... d5 {[%clk 0:02:56.6]} 3. e5 {[%clk 0:03:01.2]} 3... Bf5 {[%clk 0:02:54.7]}
4. Nf3 {[%clk 0:03:01.7]} 4... e6 {[%clk 0:02:53.3]} 5. Be2 {[%clk 0:03:02.4]}
5... Ne7 {[%clk 0:02:52.2]} 6. c3 {[%clk 0:03:01.9]} 6... h6 {[%clk 0:02:52.1]}
7. O-O {[%clk 0:03:01.5]} 7... Nd7 {[%clk 0:02:51.6]} 8. Na3 {[%clk 0:03:01.6]}
8... g5 {[%clk 0:02:49.9]} 9. Nc2 {[%clk 0:03:01.5]} 9... Qc7 {[%clk 0:02:41.8]}
10. Ne3 {[%clk 0:03:01.1]} 10... Bg6 {[%clk 0:02:41.3]} 11. h4 {[%clk
0:03:01.1]} 11... O-O-O {[%clk 0:02:35.8]} 12. hxg5 {[%clk 0:03:01.1]} 12...
hxg5 {[%clk 0:02:36.7]} 13. Ng4 {[%clk 0:02:58.1]} 13... Bf5 {[%clk 0:02:26.6]}
14. Nxg5 {[%clk 0:02:56.2]} 14... Bg6 {[%clk 0:02:11.2]} 15. g3 {[%clk
0:02:48.1]} 15... Nf5 {[%clk 0:02:10.1]} 16. Kg2 {[%clk 0:02:44.8]} 16... Be7
{[%clk 0:02:07]} 17. Bf4 {[%clk 0:02:27.2]} 17... Rdg8 {[%clk 0:02:03.3]} 18.
Rh1 {[%clk 0:02:20]} 18... Qd8 {[%clk 0:01:53.8]} 19. Qd2 {[%clk 0:02:13]} 19...
Bh5 {[%clk 0:01:46.6]} 20. Rxh5 {[%clk 0:01:36.6]} 20... Rxh5 {[%clk 0:01:46.1]}
21. Nxf7 {[%clk 0:01:36.9]} 21... Qf8 {[%clk 0:01:45.9]} 22. Ngh6 {[%clk
0:01:36.4]} 22... Nxh6 {[%clk 0:00:51.6]} 23. Nxh6 {[%clk 0:01:31.3]} 23... Bg5
{[%clk 0:00:51.6]} 24. Nxg8 {[%clk 0:01:26.4]} 1-0

[Event "Late-Titled-Tuesday-Blitz-April-30-2024"]
[Site "Chess.com"]
[Date "2024.04.30"]
[Round "4"]
[White "BrandonJiang123456"]
[Black "subham777"]
[Result "0-1"]
[WhiteElo "2213"]
[BlackElo "2475"]
[TimeControl "180+1"]
[EndTime "14:38:27 PDT"]
[Termination "subham777 won by resignation"]

1. e4 {[%clk 0:03:00.9]} 1... e6 {[%clk 0:02:59]} 2. d4 {[%clk 0:02:51.7]} 2...
d5 {[%clk 0:02:57]} 3. Nc3 {[%clk 0:02:51.1]} 3... Nf6 {[%clk 0:02:56.5]} 4.
exd5 {[%clk 0:02:46.3]} 4... exd5 {[%clk 0:02:54.5]} 5. Bg5 {[%clk 0:02:46.8]}
5... c6 {[%clk 0:02:53.6]} 6. Bd3 {[%clk 0:02:45.5]} 6... Be7 {[%clk 0:02:53.8]}
7. Qd2 {[%clk 0:02:45.5]} 7... O-O {[%clk 0:02:53.3]} 8. O-O-O {[%clk
0:02:44.8]} 8... b5 {[%clk 0:02:50.5]} 9. f3 {[%clk 0:02:40.3]} 9... Qa5 {[%clk
0:02:47]} 10. Kb1 {[%clk 0:02:38.7]} 10... Be6 {[%clk 0:02:42.2]} 11. Nge2
{[%clk 0:02:38.5]} 11... Nbd7 {[%clk 0:02:41.4]} 12. Nf4 {[%clk 0:02:37.5]}
12... Nb6 {[%clk 0:02:36.5]} 13. Nxe6 {[%clk 0:02:36.2]} 13... fxe6 {[%clk
0:02:37.4]} 14. Rde1 {[%clk 0:02:32.8]} 14... Bb4 {[%clk 0:02:35.9]} 15. Rxe6
{[%clk 0:02:29.5]} 15... Na4 {[%clk 0:02:33.6]} 16. Rxc6 {[%clk 0:02:23.5]}
16... Rac8 {[%clk 0:02:28.9]} 17. Rxc8 {[%clk 0:02:07.6]} 17... Rxc8 {[%clk
0:02:26.7]} 18. Bxf6 {[%clk 0:02:04.5]} 18... Nxc3+ {[%clk 0:01:38.6]} 19. bxc3
{[%clk 0:02:02.2]} 19... Bxc3 {[%clk 0:01:35.9]} 20. Bxh7+ {[%clk 0:01:33.4]}
20... Kxh7 {[%clk 0:01:16.7]} 21. Qd3+ {[%clk 0:01:31]} 21... g6 {[%clk
0:01:12.5]} 22. Kc1 {[%clk 0:01:28.4]} 22... Qb4 {[%clk 0:01:00.2]} 23. Kd1
{[%clk 0:01:13.3]} 23... Qb1+ {[%clk 0:00:57.1]} 24. Ke2 {[%clk 0:01:10.9]}
24... Qxh1 {[%clk 0:00:50.2]} 25. Qe3 {[%clk 0:01:06.3]} 0-1

[Event "Late-Titled-Tuesday-Blitz-April-30-2024"]
[Site "Chess.com"]
[Date "2024.04.30"]
[Round "4"]
[White "miaou33"]
[Black "HamedWafa4"]
[Result "0-1"]
[WhiteElo "2543"]
[BlackElo "2732"]
[TimeControl "180+1"]
[EndTime "14:38:33 PDT"]
[Termination "HamedWafa4 won on time"]

1. e4 {[%clk 0:03:00.9]} 1... e5 {[%clk 0:02:57.2]} 2. Nf3 {[%clk 0:03:00.9]}
2... Nc6 {[%clk 0:02:56.9]} 3. Bc4 {[%clk 0:03:00.3]} 3... Bc5 {[%clk
0:02:56.7]} 4. b4 {[%clk 0:03:00.1]} 4... Bxb4 {[%clk 0:02:55.9]} 5. c3 {[%clk
0:03:00.1]} 5... Be7 {[%clk 0:02:55.8]} 6. d4 {[%clk 0:02:57.2]} 6... Na5 {[%clk
0:02:55.9]} 7. Bxf7+ {[%clk 0:01:36.7]} 7... Kxf7 {[%clk 0:02:55.3]} 8. Nxe5+
{[%clk 0:01:22.1]} 8... Kf8 {[%clk 0:02:54.2]} 9. O-O {[%clk 0:01:21]} 9... d6
{[%clk 0:02:52.8]} 10. f4 {[%clk 0:01:08.6]} 10... dxe5 {[%clk 0:02:36.9]} 11.
fxe5+ {[%clk 0:01:09.5]} 11... Ke8 {[%clk 0:02:37.5]} 12. Qh5+ {[%clk
0:01:06.6]} 12... g6 {[%clk 0:02:37.1]} 13. Qf3 {[%clk 0:01:06.7]} 13... Be6
{[%clk 0:02:30.8]} 14. d5 {[%clk 0:01:05.8]} 14... Qd7 {[%clk 0:02:31.3]} 15.
Ba3 {[%clk 0:00:46.4]} 15... Nh6 {[%clk 0:02:04]} 16. dxe6 {[%clk 0:00:06.9]}
16... Qxe6 {[%clk 0:02:03.3]} 17. Qe2 {[%clk 0:00:07.3]} 17... Nc6 {[%clk
0:01:57.6]} 18. Bxe7 {[%clk 0:00:04.6]} 18... Qxe7 {[%clk 0:01:53.5]} 19. Nd2
{[%clk 0:00:05.5]} 19... Nf7 {[%clk 0:01:53.3]} 20. Rab1 {[%clk 0:00:02.9]}
20... Rb8 {[%clk 0:01:52.7]} 21. Qc4 {[%clk 0:00:02.4]} 21... Nfxe5 {[%clk
0:01:52.6]} 22. Qd5 {[%clk 0:00:01.8]} 22... Rf8 {[%clk 0:01:51.4]} 23. Rxf8+
{[%clk 0:00:01.4]} 23... Kxf8 {[%clk 0:01:52.3]} 24. Rf1+ {[%clk 0:00:01.1]}
24... Kg7 {[%clk 0:01:53]} 0-1

[Event "Late-Titled-Tuesday-Blitz-April-30-2024"]
[Site "Chess.com"]
[Date "2024.04.30"]
[Round "4"]
[White "Russian_berezka"]
[Black "OppieZippy"]
[Result "1-0"]
[WhiteElo "2621"]
[BlackElo "2399"]
[TimeControl "180+1"]
[EndTime "14:38:35 PDT"]
[Termination "Russian_berezka won by checkmate"]

1. d4 {[%clk 0:03:00.9]} 1... Nf6 {[%clk 0:02:57.3]} 2. c4 {[%clk 0:03:01.4]}
2... e6 {[%clk 0:02:57.5]} 3. Nf3 {[%clk 0:03:02]} 3... b6 {[%clk 0:02:57.5]} 4.
g3 {[%clk 0:03:02]} 4... Ba6 {[%clk 0:02:57.5]} 5. Qc2 {[%clk 0:03:02]} 5... Bb7
{[%clk 0:02:57.1]} 6. Bg2 {[%clk 0:03:02.1]} 6... Be7 {[%clk 0:02:54.4]} 7. Nc3
{[%clk 0:02:47.2]} 7... d5 {[%clk 0:02:19]} 8. cxd5 {[%clk 0:02:46.5]} 8... Nxd5
{[%clk 0:02:18.3]} 9. O-O {[%clk 0:02:47.4]} 9... O-O {[%clk 0:02:17.9]} 10. e4
{[%clk 0:02:46.2]} 10... Nxc3 {[%clk 0:02:18]} 11. bxc3 {[%clk 0:02:47.1]} 11...
c5 {[%clk 0:02:18.5]} 12. e5 {[%clk 0:02:35.5]} 12... cxd4 {[%clk 0:02:16.3]}
13. cxd4 {[%clk 0:02:33.2]} 13... Bd5 {[%clk 0:02:16.3]} 14. h4 {[%clk
0:02:23.6]} 14... Nc6 {[%clk 0:02:12.9]} 15. Be3 {[%clk 0:02:20.2]} 15... Rc8
{[%clk 0:02:11.7]} 16. Qd2 {[%clk 0:02:15.1]} 16... Na5 {[%clk 0:02:08.9]} 17.
Bg5 {[%clk 0:01:58.7]} 17... Nc4 {[%clk 0:02:07]} 18. Qe2 {[%clk 0:01:49.9]}
18... h6 {[%clk 0:02:02.4]} 19. Bxe7 {[%clk 0:01:48]} 19... Qxe7 {[%clk
0:02:03.3]} 20. Rac1 {[%clk 0:01:39.9]} 20... b5 {[%clk 0:02:02.7]} 21. Rfd1
{[%clk 0:01:37.5]} 21... a6 {[%clk 0:02:01.6]} 22. Ne1 {[%clk 0:01:37.5]} 22...
Qb7 {[%clk 0:02:00.3]} 23. Bxd5 {[%clk 0:01:31.6]} 23... Qxd5 {[%clk 0:02:01.2]}
24. Ng2 {[%clk 0:01:32.1]} 24... Rfd8 {[%clk 0:01:58.3]} 25. Nf4 {[%clk
0:01:31.3]} 25... Qb7 {[%clk 0:01:56.8]} 26. Qg4 {[%clk 0:01:29.8]} 26... Qe4
{[%clk 0:01:56.1]} 27. Re1 {[%clk 0:01:10.7]} 27... Qxd4 {[%clk 0:01:55.8]} 28.
Rcd1 {[%clk 0:01:10.9]} 28... Qc5 {[%clk 0:01:56.4]} 29. Nh5 {[%clk 0:01:06.7]}
29... Qf8 {[%clk 0:01:55.9]} 30. Nf6+ {[%clk 0:01:06.6]} 30... Kh8 {[%clk
0:01:55.9]} 31. Nh5 {[%clk 0:00:41.3]} 31... g6 {[%clk 0:01:52.8]} 32. Nf6
{[%clk 0:00:40.2]} 32... Qe7 {[%clk 0:01:51.1]} 33. Qf4 {[%clk 0:00:35.4]} 33...
Kg7 {[%clk 0:01:51.2]} 34. h5 {[%clk 0:00:34.3]} 34... g5 {[%clk 0:01:50.6]} 35.
Qe4 {[%clk 0:00:34.3]} 35... Rxd1 {[%clk 0:01:47]} 36. Qh7+ {[%clk 0:00:33.2]}
36... Kf8 {[%clk 0:01:42.5]} 37. Qg8# {[%clk 0:00:33.2]} 1-0

[Event "Late-Titled-Tuesday-Blitz-April-30-2024"]
[Site "Chess.com"]
[Date "2024.04.30"]
[Round "4"]
[White "Shiner22"]
[Black "Dr_Pepper18"]
[Result "0-1"]
[WhiteElo "2300"]
[BlackElo "2504"]
[TimeControl "180+1"]
[EndTime "14:38:41 PDT"]
[Termination "Dr_Pepper18 won by resignation"]

1. e4 {[%clk 0:03:00.9]} 1... e6 {[%clk 0:03:00.1]} 2. d4 {[%clk 0:03:00.5]}
2... d5 {[%clk 0:03:00.7]} 3. e5 {[%clk 0:03:00.4]} 3... c5 {[%clk 0:03:00.4]}
4. c3 {[%clk 0:03:00.9]} 4... Qa5 {[%clk 0:03:00.9]} 5. Nf3 {[%clk 0:02:57.6]}
5... cxd4 {[%clk 0:03:00.3]} 6. Bd3 {[%clk 0:02:57.5]} 6... Nc6 {[%clk
0:02:53.9]} 7. O-O {[%clk 0:02:56.2]} 7... Bd7 {[%clk 0:02:39]} 8. cxd4 {[%clk
0:02:51.7]} 8... Nb4 {[%clk 0:02:30.6]} 9. Bd2 {[%clk 0:02:49.2]} 9... Qb6
{[%clk 0:02:27.3]} 10. Bxb4 {[%clk 0:02:46.8]} 10... Bxb4 {[%clk 0:02:20]} 11.
Nc3 {[%clk 0:02:44.5]} 11... Rc8 {[%clk 0:01:56.6]} 12. Rc1 {[%clk 0:02:43.4]}
12... Ne7 {[%clk 0:01:55.9]} 13. Re1 {[%clk 0:02:41.5]} 13... Nc6 {[%clk
0:01:54.1]} 14. Bb1 {[%clk 0:02:36.6]} 14... Na5 {[%clk 0:01:31.6]} 15. Ng5
{[%clk 0:01:44.8]} 15... Be7 {[%clk 0:01:25.3]} 16. Nxh7 {[%clk 0:01:29.9]}
16... Qxb2 {[%clk 0:01:21.2]} 17. Nxd5 {[%clk 0:01:21]} 17... Rxc1 {[%clk
0:01:13.2]} 18. Qxc1 {[%clk 0:01:17.2]} 18... Qxc1 {[%clk 0:01:11.4]} 19. Rxc1
{[%clk 0:01:17.1]} 19... exd5 {[%clk 0:01:08.9]} 20. f4 {[%clk 0:01:17.2]} 20...
Nc6 {[%clk 0:01:03.8]} 21. Rd1 {[%clk 0:01:06.4]} 21... g6 {[%clk 0:00:59.6]}
22. Nf6+ {[%clk 0:01:05]} 22... Bxf6 {[%clk 0:00:59.8]} 23. exf6 {[%clk
0:01:05.9]} 23... Bf5 {[%clk 0:00:55.6]} 24. Bxf5 {[%clk 0:01:03.1]} 24... gxf5
{[%clk 0:00:56.5]} 25. Re1+ {[%clk 0:01:01.4]} 25... Kd7 {[%clk 0:00:56.1]} 26.
Re5 {[%clk 0:01:00.4]} 26... Nxe5 {[%clk 0:00:54.9]} 0-1

[Event "Late-Titled-Tuesday-Blitz-April-30-2024"]
[Site "Chess.com"]
[Date "2024.04.30"]
[Round "4"]
[White "jcibarra"]
[Black "AlexeiShirov"]
[Result "1-0"]
[WhiteElo "3007"]
[BlackElo "2812"]
[TimeControl "180+1"]
[EndTime "14:38:45 PDT"]
[Termination "jcibarra won by resignation"]

1. e4 {[%clk 0:03:00.9]} 1... e5 {[%clk 0:03:00]} 2. Nf3 {[%clk 0:03:01]} 2...
Nc6 {[%clk 0:03:00.5]} 3. Bb5 {[%clk 0:03:00.2]} 3... f5 {[%clk 0:02:59.3]} 4.
Nc3 {[%clk 0:02:56.4]} 4... fxe4 {[%clk 0:02:56]} 5. Bxc6 {[%clk 0:02:56]} 5...
bxc6 {[%clk 0:02:47.8]} 6. Nxe4 {[%clk 0:02:53.3]} 6... d5 {[%clk 0:02:46.7]} 7.
Ng3 {[%clk 0:02:44.1]} 7... e4 {[%clk 0:02:45.1]} 8. Ne5 {[%clk 0:02:37.7]} 8...
Qf6 {[%clk 0:02:32.8]} 9. d4 {[%clk 0:02:31.3]} 9... Bd6 {[%clk 0:02:28.5]} 10.
O-O {[%clk 0:02:13.4]} 10... Bxe5 {[%clk 0:02:03]} 11. Qh5+ {[%clk 0:02:11.3]}
11... g6 {[%clk 0:01:59.6]} 12. Qxe5+ {[%clk 0:02:11.6]} 12... Qxe5 {[%clk
0:01:58.5]} 13. dxe5 {[%clk 0:02:12.5]} 13... c5 {[%clk 0:01:52.2]} 14. b3
{[%clk 0:02:00.3]} 14... Ba6 {[%clk 0:01:39.8]} 15. Rd1 {[%clk 0:01:58.7]} 15...
c6 {[%clk 0:01:34.8]} 16. c4 {[%clk 0:01:56.1]} 16... O-O-O {[%clk 0:01:14.4]}
17. Ba3 {[%clk 0:01:40.5]} 17... Nh6 {[%clk 0:01:10.4]} 18. Bxc5 {[%clk
0:01:37.3]} 18... Kb7 {[%clk 0:01:08.4]} 19. Be7 {[%clk 0:01:32.7]} 19... Rd7
{[%clk 0:01:01.3]} 20. Bf6 {[%clk 0:01:32.7]} 20... Rf8 {[%clk 0:00:36.4]} 21.
Nxe4 {[%clk 0:01:32.8]} 21... Kb6 {[%clk 0:00:34.6]} 22. e6 {[%clk 0:01:24.1]}
22... Rc7 {[%clk 0:00:32.9]} 23. e7 {[%clk 0:01:16.5]} 23... Ra8 {[%clk
0:00:27.4]} 24. c5+ {[%clk 0:01:13.6]} 1-0